Cogmind - Beta 9.4 @@@ ROGUE MODE // 2020.03.22 @ 19:03:24 Player: erp.lsf Result: Self-destructed Performance ------------- Evolutions (1) 500 Regions Visited (2) 400 Robots Destroyed (32) 160 Value Destroyed (627) 627 Prototype IDs (0) 0 Alien Tech Used (0) 0 Bonus (0) 0 TOTAL SCORE: 1687 Bonus ------- None Cogmind --------- Core Integrity 145/400 Matter 219/300 Energy 100/100 System Corruption 0% Temperature Cool (0) Movement Rolling (80) Location -9/Materials Parts ------- > --- POWER (1) -------- (None) > --- PROPULSION (3) --- Wheel Wheel > --- UTILITY (3) ------ Large Storage Unit Signal Interpreter > --- WEAPON (2) ------- Heavy Assault Rifle > --- INVENTORY (10) --- Ion Engine Wheel Large Storage Unit Large Storage Unit High-capacity Matter Pod (169) Improved Sensor Array Utility Shielding Peak State ------------ > --- POWER ------------ Light Deuterium Engine > --- PROPULSION ------- Wheel Wheel Wheel > --- UTILITY ---------- Large Storage Unit Improved Sensor Array Signal Interpreter > --- WEAPON ----------- Assault Rifle Heavy Assault Rifle > --- INVENTORY -------- Light Deuterium Engine Aluminum Leg Wheel Large Storage Unit Large Storage Unit High-capacity Matter Pod Utility Shielding Light Armor Plating Medium Laser Assault Rifle [Rating: 14] Favorites ----------- Power Ion Engine Engine Ion Engine Propulsion Wheel Leg Aluminum Leg Wheel Wheel Utility Large Storage Unit Device Improved Sensor Array Storage Large Storage Unit Processor Signal Interpreter Protection Light Armor Plating Weapon Assault Rifle Energy Gun Medium Laser Ballistic Gun Assault Rifle Launcher Grenade Launcher Build | -11 -10 -9 ------- Run | Scr Mat Mat Slots Evolved 2 | . . 2 Power . | . . . Propulsion 1 | . . 1 Utility 1 | . . 1 Weapon . | . . . Parts Attached 39 | 6 8 25 Power 6 | 1 . 5 Engine 6 | 1 . 5 Core . | . . . Reactor . | . . . Propulsion 11 | 2 1 8 Treads . | . . . Leg 4 | . . 4 Wheel 7 | 2 1 4 Hover . | . . . Flight . | . . . Utility 7 | 1 2 4 Device 2 | . . 2 Storage 3 | 1 2 . Processor 1 | . . 1 Hackware . | . . . Protection 1 | . . 1 Artifact . | . . . Weapon 15 | 2 5 8 Energy Gun 3 | 1 1 1 Energy Cannon . | . . . Ballistic Gun 11 | 1 4 6 Ballistic Cannon . | . . . Launcher 1 | . . 1 Special Weapon . | . . . Impact Weapon . | . . . Slashing Weapon . | . . . Piercing Weapon . | . . . Special Melee Weapon . | . . . Unidentified Prototypes . | . . . Parts Lost 15 | . 1 14 Power 4 | . . 4 Propulsion 4 | . 1 3 Utility 1 | . . 1 Weapon 6 | . . 6 Highest Loss Streak 7 | . 1 7 Average Slot Usage (%) 94 | . 96 93 Engine 11 | . 14 9 Leg 1 | . . 3 Wheel 26 | . 27 25 Device 5 | . . 10 Storage 19 | . 25 14 Processor 3 | . . 7 Energy Gun 3 | . 7 . Ballistic Gun 20 | . 20 20 Naked Turns . | . . . Heaviest Build 42 | 12 41 42 Greatest Support 30 | 26 26 30 Greatest Overweight (x) 13 | . 2 13 Average Overweight (x) . | . . . Largest Inventory Capacity 16 | 6 16 16 Average Capacity 12 | 5 14 11 Most Carried 11 | 2 11 10 Average Carried 8 | 1 8 8 Final Capacity 16 | 6 16 10 Final Carried 11 | 2 11 7 Class Distribution -------------------- 61% | Mutant 38% | Scavenger-Mutant Dominant Class ---------------- Mutant | -10/Materials Scavenger-Mutant | -9/Materials Resources | -11 -10 -9 ----------- Run | Scr Mat Mat Matter Collected 1183 | 202 395 586 Remotely . | . . . Salvage Created 881 | . 254 627 Parts 74 | . 22 52 Haulers Intercepted . | . . . Recyclers Shooed 1 | . . 1 Parts Field Recycled . | . . . Retrieved Matter . | . . . Parts Self-Destructed . | . . . Prevented . | . . . Kills | -11 -10 -9 ------- Run | Scr Mat Mat Combat Hostiles Destroyed 24 | . 10 14 Guns 19 | . 10 9 AOE 5 | . . 5 Classes Destroyed 8 | . 4 4 Worker 3 | . 1 2 Builder 3 | . 2 1 Tunneler 1 | . . 1 Watcher 1 | . . 1 Swarmer 13 | . 9 4 Grunt 6 | . 1 5 Duelist 2 | . . 2 Sentry 3 | . . 3 Best Kill Streak 6 | . 4 6 Combat Bots Only 5 | . 3 5 Max Kills in Single Turn 2 | . 1 2 Gunslinging . | . . . Exploded 2 | . . 2 Melee . | . . . Uniques/NPCs Destroyed . | . . . Combat | -11 -10 -9 -------- Run | Scr Mat Mat Damage Taken 1852 | . 472 1380 Core 369 | . 114 255 Absorbed by Shields . | . . . Core Remaining (%) 77 | 100 54 . Volleys Fired 108 | . 49 59 Largest 2 | . 2 2 Hottest 100 | . 100 73 Shots Fired 212 | . 98 114 Gun 208 | . 98 110 Cannon . | . . . Launcher 4 | . . 4 Special . | . . . Kinetic 192 | . 84 108 Thermal 16 | . 14 2 Explosive 4 | . . 4 Electromagnetic . | . . . Robot Hit Streak 17 | . 7 17 Robot Miss Streak 3 | . 3 3 Penetration Max . | . . . Secondary Targets 2 | . . 2 Max Gunslinging Chain 1 | . . 1 Shots Hit Robots 132 | . 50 82 Core Hits 47 | . 14 33 Critical Hits . | . . . Critical Kills . | . . . Critical Parts Destroyed . | . . . Melee Attacks . | . . . Impact . | . . . Slashing . | . . . Piercing . | . . . Sneak Attacks . | . . . Combat Hostiles . | . . . Follow-up Attacks . | . . . Damage Inflicted 1908 | . 490 1418 Guns 1549 | . 490 1059 Cannons . | . . . Explosions 359 | . . 359 Melee . | . . . Ramming . | . . . Kinetic 1487 | . 453 1034 Thermal 62 | . 37 25 Explosive 359 | . . 359 Electromagnetic . | . . . Impact . | . . . Slashing . | . . . Piercing . | . . . Highest Corruption . | . . . Average Corruption . | . . . Corruption Purged . | . . . Overload Shots . | . . . Overflow Damage . | . . . Projectiles . | . . . Explosions . | . . . Melee . | . . . Knockbacks . | . . . Impact . | . . . Kinetic . | . . . Secondary . | . . . Self-Inflicted Damage 33 | . . 33 Shots 2 | . . 2 Rammed . | . . . Targets Rammed . | . . . Kicked . | . . . Crushed . | . . . Highest Temperature 273 | . 273 44 Average Temperature 89 | . 106 21 Received Heat Transfer 444 | . 48 396 Siege Activations . | . . . Robots Corrupted . | . . . Combat Hostiles . | . . . Parts Fried . | . . . Impact Corruptions . | . . . Robots Melted . | . . . Combat Hostiles . | . . . Parts Melted . | . . . Heat Transferred 185 | . 111 74 Parts Sabotaged . | . . . Parts Stolen . | . . . Parts Stripped . | . . . Power Chain Reactions . | . . . Missiles Intercepted . | . . . Alert | -11 -10 -9 ------- Run | Scr Mat Mat Peak Influence 307 | . 216 307 Average Influence 144 | . 74 217 Maximum Alert Level 1 | . 1 1 Low Security (%) 62 | 100 93 31 Level 1 37 | . 6 68 Level 2 . | . . . Level 3 . | . . . Level 4 . | . . . Level 5 . | . . . High Security . | . . . Max Security . | . . . Squads Dispatched 2 | . 1 1 Investigation 1 | . 1 . Extermination . | . . . Reinforcement 1 | . . 1 Assault . | . . . Garrison . | . . . Intercept . | . . . Construction Impeded . | . . . Haulers Reinforced . | . . . Stealth | -11 -10 -9 --------- Run | Scr Mat Mat Distress Signals 1 | . . 1 Communications Jammed . | . . . Distress Signals . | . . . Times Spotted 49 | . 19 30 Peak Tracking Total 8 | . 6 8 Tactical Retreats 4 | . 3 1 Traps | -11 -10 -9 ------- Run | Scr Mat Mat Traps Triggered 2 | . 1 1 Indirectly . | . . . Trap Hack Attempts . | . . . Triggered . | . . . Disarmed . | . . . Reprogrammed . | . . . Reused . | . . . Traps Extracted . | . . . Installed . | . . . Triggered . | . . . Machines | -11 -10 -9 ---------- Run | Scr Mat Mat Machines Disabled 1 | . 1 . Max in Single Turn 1 | . 1 . Machines Sabotaged . | . . . Garrisons Compromised . | . . . Overloaded Fab Kills . | . . . Fab Network Shutdowns . | . . . Hacking | -11 -10 -9 --------- Run | Scr Mat Mat Machines Accessed 2 | . 1 1 Terminals 2 | . 1 1 Fabricators . | . . . Repair Stations . | . . . Recycling Units . | . . . Scanalyzers . | . . . Garrison Access . | . . . Total Hacks 4 | . 3 1 Successful 2 | . 1 1 Failed 2 | . 2 . Catastrophic . | . . . Database Lockouts . | . . . Manual . | . . . Terminals 4 | . 3 1 Fabricators . | . . . Repair Stations . | . . . Recycling Units . | . . . Scanalyzers . | . . . Garrison Access . | . . . Terminal Hacks 2 | . 1 1 Recall Investigation 1 | . 1 . Hauler Manifests 1 | . . 1 Fabricator Hacks . | . . . Repair Station Hacks . | . . . Recycling Unit Hacks . | . . . Scanalyzer . | . . . Garrison Access Hacks . | . . . Unauthorized Hacks . | . . . Terminals . | . . . Fabricators . | . . . Repair Stations . | . . . Recycling Units . | . . . Scanalyzers . | . . . Garrison Access . | . . . Data Cores Recovered . | . . . Used . | . . . Hacking Detections 1 | . 1 . Full Trace Events . | . . . Feedback Events . | . . . Feedback Blocked . | . . . Robot Schematics Acquired . | . . . Robots Built . | . . . Matter . | . . . Time . | . . . Total Robot Build Rating . | . . . Part Schematics Acquired . | . . . Parts Built . | . . . Matter . | . . . Time . | . . . Total Part Build Rating . | . . . Parts Repaired . | . . . Time . | . . . Parts Recycled . | . . . Recycled Matter . | . . . Retrieved Matter . | . . . Retrieved Components . | . . . Parts Scanalyzed . | . . . Part Schematics Acquired . | . . . Parts Damaged . | . . . Bothacking | -11 -10 -9 ------------ Run | Scr Mat Mat Used RIF Installer . | . . . Robots Hacked . | . . . Non-combat . | . . . Combat . | . . . Robot Hacks Applied . | . . . Relay Couplers Released . | . . . Robots Rewired . | . . . Allies Hacked . | . . . Hacks Repelled . | . . . Allies | -11 -10 -9 -------- Run | Scr Mat Mat Total Allies . | . . . Largest Group . | . . . Highest-Rated Group . | . . . Highest-Rated Ally . | . . . Total Orders . | . . . Ally Attacks . | . . . Total Damage . | . . . Kills . | . . . Allies Corrupted . | . . . Allies Melted . | . . . Intel | -11 -10 -9 ------- Run | Scr Mat Mat Robot Analysis Total . | . . . Derelict Logs Recovered . | . . . Drone Launches . | . . . Drone Recoveries . | . . . Exploration | -11 -10 -9 ------------- Run | Scr Mat Mat Turns Passed 1285 | 42 592 651 Spaces Moved 826 | 36 420 370 Core 8 | 4 . 4 Treads . | . . . Legs 26 | . . 26 Wheels 792 | 32 420 340 Hover . | . . . Flight . | . . . Fastest Speed 50 | 50 90 80 Average Speed 96 | 87 97 95 Slowest Speed 700 | 100 120 700 Overloaded Moves . | . . . Propulsion Burnouts . | . . . Robots Hopped . | . . . Cave-ins Triggered . | . . . Exploration Rate (%) 31 | 4 63 28 Regions Visited 2 Branch Regions . Pre-discovered Areas . | . . . Known Exits Taken . | . . . Unknown Exits Taken 2 | 1 1 . Scrap Searched . | . . . Spaces Dug . | . . . Terrain Destroyed 23 | . . 23 Melee . | . . . Projectile . | . . . AOE 23 | . . 23 Actions | -11 -10 -9 --------- Run | Scr Mat Mat Total 1098 | 43 505 550 Wait 94 | . 15 79 Move 824 | 35 419 370 Hop . | . . . Pick Up 18 | 2 10 6 Fast Attach 17 | 6 3 8 Attach 9 | . . 9 Detach 1 | . . 1 Swap 13 | . 5 8 Drop 14 | . 4 10 Fire 108 | . 49 59 Melee . | . . . Ram . | . . . Kick . | . . . Crush . | . . . Escape Stasis . | . . . Rewire . | . . . Trap . | . . . Miscellaneous . | . . . Route ------- -11/Scrapyard -10/Materials (discovered 2 exits: *Mat / [*Min]) -9/Materials History --------- Turn | Location | Event 13 | -11/Scrapyard | Discovered new exit (range 15) 43 | -11/Scrapyard | Entered Materials 254 | -10/Materials | Discovered new exit (range 15) 318 | -10/Materials | Build established: Mutant 525 | -10/Materials | Discovered new exit (range 8) 635 | -10/Materials | Entered another Materials area 635 | -9/Materials | Evolved 2 slots: Propulsion x1, Utility x1 710 | -9/Materials | Lost 5 parts (1p2n2w) 1070 | -9/Materials | Build established: Scavenger-Mutant 1279 | -9/Materials | Core integrity fell below 50% 1286 | -9/Materials | Self-destructed Last Messages --------------- 01172_ K-01 Serf cleans the Terminal. 01236_ Destroyed Sml. Laser. 01245_ Lgt. Deuterium Engine destroyed. 01245_ G-34 Mercenary destroyed. 01252_ Acquired 40 matter. 01254_ Acquired Ion Engine. 01260_ Dropped Aluminum Leg. 01264_ C-30 ARC bursts open, deploying its payload. 01264_ L-31 Rogue unfolds itself. 01264_ G-34 Mercenary unfolds itself. 01266_ Assault Rifle destroyed. 01272_ C-30 ARC bursts open, deploying its payload. 01272_ S-10 Pest unfolds itself. 01277_ Lgt. Armor Plating destroyed. 01278_ L-31 Rogue destroyed. 01278_ Switching to secondary target: Y-45 Defender. 01279_ Lgt. Deuterium Engine destroyed. 01281_ M-13 Machinist fits Backup Laser I on G-34 Mercenary. 01281_ Wheel destroyed. 01281_ Med. Laser destroyed. Map ----- +----------------------------------------------------+ | ???????# """""#????????????????# """ # #?????? | | ???????# """""#????????????????# "R # #?????? | | ???????# #????????????????# """ # #?????? | | ???????##########????????????????# [# #?????? | | ?????????????????????????????????# * + #?????? | | ???????????????????????????????########## #?????? | | ???????????????????????????????# ##### #?????? | | ???????????????????????????????# #?????? | | ???????????????????????????????# #?????? | | ????????????????#??????????????# ##### #?????? | | ????????????????# ?????????????## ##???# #?????? | | ????????????????? ???#######???# #????# *#####+# | | ?????????###+######+### #???# #????# ! ! | | ???????? "%" #???# #????# [ | | ???????? " T #??## ##???########## | | ???????? % #### #????????????? | | ???????????????####+### g u #????????????? | | ??????????????????????## sss ## T #????????????? | | ???????????????????????#s * ## #????????????? | | ???????????????????????# % ########???????????? | | ???????????????????????# ! # #???????????? | | ???????????????????????# / #???????????? | | ???????????????????????# # "" #???????????? | | ???????????????????????# = #? S"" #??????????? | | ????????????????????#####/###+#??"" ##??????????? | | ????????????????????# """@""" #??? ?#???????????? | | ????????????????????# """ """ #????##????????????? | | ????????????????????# """ """=#??????????????????? | | ????????????????????# [ !#??????????????????? | | ????????????????????# = #??????????????????? | | ????????????????????# #??????????????????? | | ????????????????????# #??????????????????? | | ????????????????????# #??????????????????? | | ????????????????????###########??????????????????? | | | | | | | | | | | | | | | | | | | | | | | | | | | | | | | | | +----------------------------------------------------+ Best States ------------- Heat Dissipation 28 Energy Generation 14 Energy Capacity 250 Matter Stores 300 Matter Capacity 300 Sight Range 16 Robot Scan Range 13 Terrain Scan Density 10 Evasion (%) 44 Item Schematics ----------------- None Robot Schematics ------------------ None Fabricated ------------ Nothing Alien Tech Used ----------------- None Achievements -------------- None Challenges ------------ None Game ------ Seed DeliveryVisualTrap Manual? 0 Play Time 00:15:54 Cumulative 10.2 hours Start 2020.03.22 @ 18:42:25 End 2020.03.22 @ 19:03:24 Sessions 1 Manual Loads 0 Difficulty Rogue Special Mode None Game No. 17 Rogue 17 Adventurer 0 Explorer 0 Win Type - Total 0 Types 0/0/0/0/0/0/0 Lore% 15 Gallery% 14 Achievement% 15 Wizard Run 0 Options --------- ASCII 0 Keyboard 0 Movement Numpad Keybinds 0 Fullscreen 2 Font 24/Smallcaps Map View 76x50 Tactical HUD 1 Map Filters NONE Filters NONE Steam 1 RUN: 0b7fbb6d-251c-45ec-a531-328ac0981817